[Event "Early-Titled-Tuesday-Blitz-February-13-2024"]
[Site "Chess.com"]
[Date "2024.02.13"]
[Round "1"]
[White "larsmandreassen"]
[Black "Yeritsyaan"]
[Result "0-1"]
[WhiteElo "2213"]
[BlackElo "2601"]
[TimeControl "180+1"]
[EndTime "8:06:53 PST"]
[Termination "Yeritsyaan won by resignation"]

1. d4 {[%clk 0:03:00]} 1... Nf6 {[%clk 0:02:58.1]} 2. Nf3 {[%clk 0:03:00.9]}
2... g6 {[%clk 0:02:56.4]} 3. Bg5 {[%clk 0:03:01.2]} 3... Bg7 {[%clk 0:02:55.2]}
4. Nc3 {[%clk 0:03:00.6]} 4... O-O {[%clk 0:02:53.6]} 5. e4 {[%clk 0:02:59.5]}
5... d6 {[%clk 0:02:54]} 6. Qd2 {[%clk 0:02:57.6]} 6... c5 {[%clk 0:02:44.4]} 7.
O-O-O {[%clk 0:02:53.3]} 7... cxd4 {[%clk 0:02:41.7]} 8. Nxd4 {[%clk 0:02:54.2]}
8... Nc6 {[%clk 0:02:40.2]} 9. Nxc6 {[%clk 0:02:46.7]} 9... bxc6 {[%clk
0:02:41.1]} 10. f3 {[%clk 0:02:46.2]} 10... Rb8 {[%clk 0:02:39.4]} 11. Bc4
{[%clk 0:02:45.8]} 11... Qb6 {[%clk 0:02:31]} 12. Bb3 {[%clk 0:02:44.9]} 12...
a5 {[%clk 0:02:31.2]} 13. Be3 {[%clk 0:02:41.5]} 13... Qb4 {[%clk 0:02:25.9]}
14. a3 {[%clk 0:02:37.2]} 14... Qb7 {[%clk 0:02:20.7]} 15. Na4 {[%clk
0:02:35.7]} 15... c5 {[%clk 0:02:16.2]} 16. Qxa5 {[%clk 0:02:23.1]} 16... Be6
{[%clk 0:02:07.3]} 17. Bxe6 {[%clk 0:02:14.5]} 17... fxe6 {[%clk 0:02:08.2]} 18.
b3 {[%clk 0:01:59.7]} 18... Nd7 {[%clk 0:02:04.6]} 19. Bd2 {[%clk 0:01:50.9]}
19... Ra8 {[%clk 0:01:41]} 20. Bc3 {[%clk 0:01:21]} 20... Rxa5 {[%clk
0:01:36.9]} 21. Bxa5 {[%clk 0:01:21.2]} 21... Ra8 {[%clk 0:01:36.4]} 22. Bc3
{[%clk 0:01:17]} 22... Bxc3 {[%clk 0:01:19]} 23. Nxc3 {[%clk 0:01:16.5]} 23...
Rxa3 {[%clk 0:01:18]} 24. Kb2 {[%clk 0:01:16.1]} 24... Ra8 {[%clk 0:01:18.2]}
25. Ra1 {[%clk 0:00:50.5]} 25... Ne5 {[%clk 0:01:17.9]} 26. Rxa8+ {[%clk
0:00:47.8]} 26... Qxa8 {[%clk 0:01:18.8]} 27. Ra1 {[%clk 0:00:47.3]} 27... Qb7
{[%clk 0:01:19.5]} 28. Ra4 {[%clk 0:00:44.8]} 28... d5 {[%clk 0:01:17.7]} 29.
exd5 {[%clk 0:00:43.8]} 29... exd5 {[%clk 0:01:18.6]} 30. f4 {[%clk 0:00:43]}
30... Nc4+ {[%clk 0:01:13.8]} 31. Kc1 {[%clk 0:00:40]} 31... Nd6 {[%clk
0:01:12.6]} 32. Ra5 {[%clk 0:00:36.7]} 32... d4 {[%clk 0:01:11.8]} 33. Na4
{[%clk 0:00:35.1]} 33... c4 {[%clk 0:01:10.9]} 34. Nc5 {[%clk 0:00:30.6]} 34...
Qxg2 {[%clk 0:01:09]} 35. b4 {[%clk 0:00:18.1]} 35... c3 {[%clk 0:01:06.7]} 36.
Kb1 {[%clk 0:00:15.4]} 36... Nc4 {[%clk 0:00:58.3]} 37. Ra7 {[%clk 0:00:10.6]}
37... Ne3 {[%clk 0:00:57.6]} 0-1

[Event "Early-Titled-Tuesday-Blitz-February-13-2024"]
[Site "Chess.com"]
[Date "2024.02.13"]
[Round "1"]
[White "ProfessorChess101"]
[Black "Real_taiatai"]
[Result "1-0"]
[WhiteElo "2822"]
[BlackElo "2455"]
[TimeControl "180+1"]
[EndTime "8:06:54 PST"]
[Termination "ProfessorChess101 won by resignation"]

1. e4 {[%clk 0:03:00.9]} 1... e5 {[%clk 0:03:00.4]} 2. Nf3 {[%clk 0:03:00.8]}
2... Nc6 {[%clk 0:03:00.1]} 3. Bb5 {[%clk 0:03:00.9]} 3... a6 {[%clk 0:03:00.1]}
4. Ba4 {[%clk 0:03:00.8]} 4... Nf6 {[%clk 0:03:00.6]} 5. O-O {[%clk 0:03:01]}
5... b5 {[%clk 0:03:00.9]} 6. Bb3 {[%clk 0:03:01]} 6... Bc5 {[%clk 0:03:01.4]}
7. d3 {[%clk 0:02:59.8]} 7... d6 {[%clk 0:03:01.8]} 8. Nc3 {[%clk 0:02:59.2]}
8... h6 {[%clk 0:02:57.7]} 9. a4 {[%clk 0:02:58.9]} 9... Rb8 {[%clk 0:02:56.1]}
10. Nd5 {[%clk 0:02:58.1]} 10... Be6 {[%clk 0:02:52.3]} 11. axb5 {[%clk
0:02:48.1]} 11... axb5 {[%clk 0:02:51.9]} 12. c3 {[%clk 0:02:48]} 12... Bxd5
{[%clk 0:02:50.4]} 13. exd5 {[%clk 0:02:48.2]} 13... Ne7 {[%clk 0:02:49.4]} 14.
d4 {[%clk 0:02:48]} 14... exd4 {[%clk 0:02:48.3]} 15. Nxd4 {[%clk 0:02:48.9]}
15... O-O {[%clk 0:02:39.6]} 16. Qf3 {[%clk 0:02:46.8]} 16... Bxd4 {[%clk
0:02:36.2]} 17. cxd4 {[%clk 0:02:47.7]} 17... Nc8 {[%clk 0:01:52.4]} 18. Bd2
{[%clk 0:02:12.7]} 18... Nb6 {[%clk 0:01:52.6]} 19. Rac1 {[%clk 0:02:10.1]}
19... Ra8 {[%clk 0:01:42.7]} 20. h3 {[%clk 0:02:05]} 20... Re8 {[%clk
0:01:38.6]} 21. Rc6 {[%clk 0:02:02]} 21... Ra7 {[%clk 0:01:22.5]} 22. Rfc1
{[%clk 0:01:46]} 22... Re7 {[%clk 0:01:17.9]} 23. Kh2 {[%clk 0:01:34.8]} 23...
Ne4 {[%clk 0:01:13.3]} 24. Be3 {[%clk 0:01:33.5]} 24... Qe8 {[%clk 0:01:01.5]}
25. Qg4 {[%clk 0:01:16.9]} 25... Nf6 {[%clk 0:01:01]} 26. Qf3 {[%clk 0:01:17]}
26... Ne4 {[%clk 0:01:01.3]} 27. Qf5 {[%clk 0:01:10.1]} 27... g6 {[%clk
0:00:58.1]} 28. Qf3 {[%clk 0:01:00.3]} 28... Kh7 {[%clk 0:00:57.3]} 29. Qf4
{[%clk 0:00:54.6]} 29... Qf8 {[%clk 0:00:49.9]} 30. f3 {[%clk 0:00:41.2]} 30...
Qe8 {[%clk 0:00:13.3]} 31. fxe4 {[%clk 0:00:37.3]} 31... Kg8 {[%clk 0:00:14.2]}
32. Qxh6 {[%clk 0:00:31.7]} 32... Rxe4 {[%clk 0:00:14.6]} 33. Bg5 {[%clk
0:00:29.9]} 33... Rxd4 {[%clk 0:00:11]} 34. Bf6 {[%clk 0:00:28.2]} 1-0

[Event "Early-Titled-Tuesday-Blitz-February-13-2024"]
[Site "Chess.com"]
[Date "2024.02.13"]
[Round "1"]
[White "MyDream003"]
[Black "Chernyavsky_A"]
[Result "1-0"]
[WhiteElo "2715"]
[BlackElo "2381"]
[TimeControl "180+1"]
[EndTime "8:06:54 PST"]
[Termination "MyDream003 won by resignation"]

1. Nf3 {[%clk 0:03:00.9]} 1... Nf6 {[%clk 0:02:59.2]} 2. c4 {[%clk 0:03:00.7]}
2... g6 {[%clk 0:02:59.4]} 3. Nc3 {[%clk 0:03:00.6]} 3... Bg7 {[%clk 0:03:00]}
4. d4 {[%clk 0:02:59.7]} 4... O-O {[%clk 0:03:00.6]} 5. g3 {[%clk 0:03:00]} 5...
d6 {[%clk 0:03:00.5]} 6. Bg2 {[%clk 0:03:00.3]} 6... Nc6 {[%clk 0:03:01.1]} 7.
O-O {[%clk 0:03:00.5]} 7... a6 {[%clk 0:03:01.6]} 8. b3 {[%clk 0:02:52.2]} 8...
Rb8 {[%clk 0:03:01.2]} 9. Bb2 {[%clk 0:02:50.8]} 9... b5 {[%clk 0:03:01.7]} 10.
cxb5 {[%clk 0:02:51.3]} 10... axb5 {[%clk 0:03:02.6]} 11. e3 {[%clk 0:02:48]}
11... b4 {[%clk 0:03:01.1]} 12. Ne2 {[%clk 0:02:46.7]} 12... Na7 {[%clk
0:02:49.1]} 13. Ne1 {[%clk 0:02:42.6]} 13... Bb7 {[%clk 0:02:42.1]} 14. Bxb7
{[%clk 0:02:39.5]} 14... Rxb7 {[%clk 0:02:43]} 15. Nd3 {[%clk 0:02:39.7]} 15...
Qd7 {[%clk 0:01:58.7]} 16. Kg2 {[%clk 0:02:31.2]} 16... Ra8 {[%clk 0:01:30.8]}
17. Qc2 {[%clk 0:02:28.2]} 17... Nb5 {[%clk 0:01:28.3]} 18. Nxb4 {[%clk
0:02:14]} 18... Nxd4 {[%clk 0:01:19.4]} 19. Nxd4 {[%clk 0:02:14.9]} 19... Rxb4
{[%clk 0:01:19.5]} 20. Qc6 {[%clk 0:02:09.7]} 20... Qc8 {[%clk 0:00:58.9]} 21.
Rfc1 {[%clk 0:02:04.9]} 21... Ne8 {[%clk 0:00:58.2]} 22. a3 {[%clk 0:01:34.3]}
22... Rb6 {[%clk 0:00:57.6]} 23. Qxb6 {[%clk 0:01:32.4]} 23... cxb6 {[%clk
0:00:55.2]} 24. Rxc8 {[%clk 0:01:33.3]} 24... Rxc8 {[%clk 0:00:55.9]} 25. a4
{[%clk 0:01:24.1]} 25... Bxd4 {[%clk 0:00:29.6]} 26. Bxd4 {[%clk 0:01:23.6]}
26... Rc6 {[%clk 0:00:30.3]} 27. b4 {[%clk 0:01:20.8]} 27... e5 {[%clk
0:00:29.7]} 28. b5 {[%clk 0:01:20.3]} 28... Rc4 {[%clk 0:00:24.5]} 29. Bxb6
{[%clk 0:01:20.1]} 29... Rb4 {[%clk 0:00:23.8]} 30. Bd8 {[%clk 0:01:00.1]} 30...
Ng7 {[%clk 0:00:20.3]} 31. b6 {[%clk 0:00:53.9]} 31... Ne6 {[%clk 0:00:19.6]}
32. a5 {[%clk 0:00:44.6]} 32... Nxd8 {[%clk 0:00:19.3]} 33. a6 {[%clk
0:00:44.9]} 1-0

[Event "Early-Titled-Tuesday-Blitz-February-13-2024"]
[Site "Chess.com"]
[Date "2024.02.13"]
[Round "1"]
[White "ChainedDowntohell"]
[Black "akanga001"]
[Result "0-1"]
[WhiteElo "2543"]
[BlackElo "2004"]
[TimeControl "180+1"]
[EndTime "8:06:54 PST"]
[Termination "akanga001 won by resignation"]

1. d4 {[%clk 0:03:00.9]} 1... d5 {[%clk 0:02:56]} 2. Nf3 {[%clk 0:03:00.2]} 2...
Nf6 {[%clk 0:02:53.6]} 3. Bf4 {[%clk 0:02:59]} 3... Bf5 {[%clk 0:02:52.3]} 4. e3
{[%clk 0:02:58.2]} 4... e6 {[%clk 0:02:49.2]} 5. c4 {[%clk 0:02:58.1]} 5... Bxb1
{[%clk 0:02:48.2]} 6. Qxb1 {[%clk 0:02:57.8]} 6... Bb4+ {[%clk 0:02:45.6]} 7.
Kd1 {[%clk 0:02:56.8]} 7... Bd6 {[%clk 0:02:43.8]} 8. Bg5 {[%clk 0:02:54.3]}
8... c6 {[%clk 0:02:36.6]} 9. c5 {[%clk 0:02:52.4]} 9... Be7 {[%clk 0:02:35.9]}
10. Bd3 {[%clk 0:02:46.9]} 10... Nbd7 {[%clk 0:02:35]} 11. b4 {[%clk 0:02:44.2]}
11... h6 {[%clk 0:02:33.3]} 12. Bh4 {[%clk 0:02:42.1]} 12... Nh5 {[%clk
0:02:23.7]} 13. Bg3 {[%clk 0:02:19.7]} 13... Nxg3 {[%clk 0:02:22.1]} 14. hxg3
{[%clk 0:02:20.4]} 14... Bf6 {[%clk 0:02:16.7]} 15. e4 {[%clk 0:02:05.7]} 15...
dxe4 {[%clk 0:02:13.4]} 16. Bxe4 {[%clk 0:02:06.6]} 16... e5 {[%clk 0:02:13.5]}
17. Qb3 {[%clk 0:01:23.7]} 17... exd4 {[%clk 0:02:03.3]} 18. Kd2 {[%clk
0:01:22.7]} 18... O-O {[%clk 0:02:02.5]} 19. g4 {[%clk 0:01:15.1]} 19... Re8
{[%clk 0:02:00.3]} 20. Bc2 {[%clk 0:01:09.8]} 20... Ne5 {[%clk 0:01:56.3]} 21.
Nxe5 {[%clk 0:01:04]} 21... Rxe5 {[%clk 0:01:54]} 22. Qd3 {[%clk 0:01:00.1]}
22... g6 {[%clk 0:01:42.2]} 23. Raf1 {[%clk 0:00:51.7]} 23... Qe7 {[%clk
0:01:39.9]} 24. Qc4 {[%clk 0:00:45.5]} 24... Kg7 {[%clk 0:01:36.9]} 25. Bd3
{[%clk 0:00:43.3]} 25... a5 {[%clk 0:01:31.5]} 26. a3 {[%clk 0:00:39.9]} 26...
axb4 {[%clk 0:01:30.7]} 27. axb4 {[%clk 0:00:40.8]} 27... Ra3 {[%clk 0:01:30.1]}
28. g3 {[%clk 0:00:31.7]} 28... Rc3 {[%clk 0:01:28.6]} 29. Qa2 {[%clk
0:00:31.2]} 29... Qd7 {[%clk 0:01:15.1]} 30. Re1 {[%clk 0:00:13.2]} 30... Qxg4
{[%clk 0:01:13.9]} 31. Rxe5 {[%clk 0:00:13.1]} 31... Bxe5 {[%clk 0:01:13.3]} 32.
Re1 {[%clk 0:00:12.8]} 32... Qf3 {[%clk 0:01:09.9]} 33. Qb1 {[%clk 0:00:01.6]}
33... Qxf2+ {[%clk 0:01:02.5]} 34. Re2 {[%clk 0:00:02.1]} 34... Qxg3 {[%clk
0:01:02.4]} 35. Re4 {[%clk 0:00:01.5]} 35... Bf4+ {[%clk 0:01:01]} 36. Kd1
{[%clk 0:00:01.8]} 36... Rxd3+ {[%clk 0:00:56.1]} 0-1

[Event "Early-Titled-Tuesday-Blitz-February-13-2024"]
[Site "Chess.com"]
[Date "2024.02.13"]
[Round "1"]
[White "thesupera12"]
[Black "temus_galaktionov"]
[Result "0-1"]
[WhiteElo "2503"]
[BlackElo "2911"]
[TimeControl "180+1"]
[EndTime "8:06:56 PST"]
[Termination "temus_galaktionov won by resignation"]

1. e4 {[%clk 0:03:00.1]} 1... c6 {[%clk 0:03:00.9]} 2. d4 {[%clk 0:02:57.7]}
2... g6 {[%clk 0:03:01.8]} 3. g3 {[%clk 0:02:57.5]} 3... Bg7 {[%clk 0:03:02.3]}
4. Bg2 {[%clk 0:02:58.1]} 4... d6 {[%clk 0:03:03]} 5. Ne2 {[%clk 0:02:58.6]}
5... Nd7 {[%clk 0:03:03.7]} 6. O-O {[%clk 0:02:59.2]} 6... e5 {[%clk 0:03:03.7]}
7. dxe5 {[%clk 0:02:58]} 7... dxe5 {[%clk 0:03:04.6]} 8. Qd6 {[%clk 0:02:56.3]}
8... Qe7 {[%clk 0:03:04.3]} 9. Rd1 {[%clk 0:02:55.1]} 9... Qxd6 {[%clk 0:03:04]}
10. Rxd6 {[%clk 0:02:56]} 10... Nc5 {[%clk 0:03:01.3]} 11. Be3 {[%clk
0:02:53.9]} 11... Ne6 {[%clk 0:03:00.8]} 12. Na3 {[%clk 0:02:49.2]} 12... Bf8
{[%clk 0:02:55.4]} 13. Rd3 {[%clk 0:02:45.5]} 13... b5 {[%clk 0:02:55.3]} 14.
Rad1 {[%clk 0:02:43.5]} 14... Ba6 {[%clk 0:02:53.1]} 15. R3d2 {[%clk 0:02:28.9]}
15... Nf6 {[%clk 0:02:44.5]} 16. f4 {[%clk 0:02:28.2]} 16... Ng4 {[%clk
0:02:43.1]} 17. Bf2 {[%clk 0:02:21.7]} 17... Nxf2 {[%clk 0:02:42.5]} 18. Kxf2
{[%clk 0:02:22.6]} 18... Bc5+ {[%clk 0:02:42.3]} 19. Kf3 {[%clk 0:02:20.4]}
19... b4 {[%clk 0:02:37.9]} 20. Nb1 {[%clk 0:02:17.4]} 20... Bxe2+ {[%clk
0:02:36.2]} 21. Kxe2 {[%clk 0:02:12.1]} 21... exf4 {[%clk 0:02:36.4]} 22. gxf4
{[%clk 0:01:49.5]} 22... Nxf4+ {[%clk 0:02:36.3]} 23. Kf3 {[%clk 0:01:50.4]}
23... Nxg2 {[%clk 0:02:23.9]} 24. Kxg2 {[%clk 0:01:51.3]} 24... Ke7 {[%clk
0:02:24.1]} 25. c3 {[%clk 0:01:39.1]} 25... Rhd8 {[%clk 0:02:15.9]} 26. Kf3
{[%clk 0:01:34.9]} 26... Rxd2 {[%clk 0:02:09]} 27. Rxd2 {[%clk 0:01:34]} 27...
Rd8 {[%clk 0:02:09.6]} 28. Rc2 {[%clk 0:01:33.9]} 28... Rd3+ {[%clk 0:02:03.9]}
29. Kf4 {[%clk 0:01:27.8]} 29... Kd6 {[%clk 0:01:39.7]} 30. cxb4 {[%clk
0:01:20.7]} 30... Bxb4 {[%clk 0:01:40.6]} 31. a3 {[%clk 0:01:20.9]} 31... Be1
{[%clk 0:01:39.2]} 32. Re2 {[%clk 0:01:16.7]} 32... Rd1 {[%clk 0:01:37.1]} 33.
Nc3 {[%clk 0:01:05.7]} 33... Bxc3 {[%clk 0:01:35.1]} 34. bxc3 {[%clk 0:01:05.8]}
34... Rd3 {[%clk 0:01:33]} 35. Kg5 {[%clk 0:01:04.7]} 35... Ke6 {[%clk
0:01:26.3]} 36. Kh6 {[%clk 0:01:03]} 36... Rxc3 {[%clk 0:01:25.4]} 37. Kxh7
{[%clk 0:01:03.3]} 37... Rxa3 {[%clk 0:01:25.2]} 38. Rc2 {[%clk 0:01:02.1]}
38... Kd6 {[%clk 0:01:19.3]} 39. Kg7 {[%clk 0:01:01.2]} 39... Rf3 {[%clk
0:01:17.2]} 40. Ra2 {[%clk 0:01:00.7]} 40... Ke5 {[%clk 0:01:16.1]} 41. Rxa7
{[%clk 0:01:01.3]} 41... Kxe4 {[%clk 0:01:16.2]} 42. Rc7 {[%clk 0:00:53.9]}
42... Kd5 {[%clk 0:01:15.8]} 43. h4 {[%clk 0:00:54.6]} 43... Rf4 {[%clk
0:01:09.9]} 44. Rxf7 {[%clk 0:00:46.3]} 44... Rxh4 {[%clk 0:01:07.5]} 45. Kxg6
{[%clk 0:00:45.8]} 45... c5 {[%clk 0:01:02.9]} 46. Kf5 {[%clk 0:00:44.4]} 46...
Kc4 {[%clk 0:01:00.8]} 47. Rb7 {[%clk 0:00:39.2]} 47... Kc3 {[%clk 0:01:00.1]}
48. Ke5 {[%clk 0:00:36.3]} 48... c4 {[%clk 0:01:00]} 49. Kd5 {[%clk 0:00:36.9]}
49... Kd3 {[%clk 0:00:56.8]} 50. Rb4 {[%clk 0:00:36.9]} 50... Rh5+ {[%clk
0:00:56]} 51. Ke6 {[%clk 0:00:36.2]} 51... c3 {[%clk 0:00:56.6]} 52. Rb5 {[%clk
0:00:33.1]} 52... Rh6+ {[%clk 0:00:55.8]} 53. Kf7 {[%clk 0:00:31.8]} 53... c2
{[%clk 0:00:56]} 54. Rb6 {[%clk 0:00:31.1]} 54... Rxb6 {[%clk 0:00:54.9]} 0-1

[Event "Early-Titled-Tuesday-Blitz-February-13-2024"]
[Site "Chess.com"]
[Date "2024.02.13"]
[Round "1"]
[White "artin10862"]
[Black "amanjazu"]
[Result "0-1"]
[WhiteElo "2886"]
[BlackElo "2512"]
[TimeControl "180+1"]
[EndTime "8:07:01 PST"]
[Termination "amanjazu won by resignation"]

1. e4 {[%clk 0:03:00.9]} 1... Nf6 {[%clk 0:02:56.7]} 2. e5 {[%clk 0:02:56]} 2...
Nd5 {[%clk 0:02:57.1]} 3. d4 {[%clk 0:02:55.8]} 3... d6 {[%clk 0:02:56.7]} 4. c4
{[%clk 0:02:53.8]} 4... Nb6 {[%clk 0:02:56.8]} 5. exd6 {[%clk 0:02:53.8]} 5...
cxd6 {[%clk 0:02:57.7]} 6. Nf3 {[%clk 0:02:51]} 6... g6 {[%clk 0:02:58]} 7. Nc3
{[%clk 0:02:45.3]} 7... Bg7 {[%clk 0:02:58.4]} 8. Be2 {[%clk 0:02:44]} 8... O-O
{[%clk 0:02:59]} 9. O-O {[%clk 0:02:44.3]} 9... Nc6 {[%clk 0:02:59.5]} 10. Be3
{[%clk 0:02:35.9]} 10... Bg4 {[%clk 0:02:57.9]} 11. b3 {[%clk 0:02:35.4]} 11...
d5 {[%clk 0:02:49.3]} 12. c5 {[%clk 0:02:34.9]} 12... Nc8 {[%clk 0:02:49.1]} 13.
h3 {[%clk 0:02:30.2]} 13... Bxf3 {[%clk 0:02:48.5]} 14. Bxf3 {[%clk 0:02:31.1]}
14... e6 {[%clk 0:02:49.1]} 15. a3 {[%clk 0:02:08.3]} 15... N8e7 {[%clk
0:02:13.6]} 16. b4 {[%clk 0:01:55.9]} 16... Nf5 {[%clk 0:02:11.5]} 17. Ne2
{[%clk 0:01:55.6]} 17... Qf6 {[%clk 0:01:59.3]} 18. Rc1 {[%clk 0:01:38.4]} 18...
Rac8 {[%clk 0:01:54.8]} 19. Qa4 {[%clk 0:01:32.9]} 19... a6 {[%clk 0:01:45]} 20.
Rfd1 {[%clk 0:01:32.2]} 20... Nh4 {[%clk 0:01:42.8]} 21. Bf4 {[%clk 0:00:47.5]}
21... g5 {[%clk 0:01:18.7]} 22. Bd6 {[%clk 0:00:47]} 22... Nxf3+ {[%clk
0:01:17.9]} 23. gxf3 {[%clk 0:00:47.9]} 23... Qxf3 {[%clk 0:00:53.1]} 24. Bxf8
{[%clk 0:00:45.9]} 24... Rxf8 {[%clk 0:00:54]} 25. Qc2 {[%clk 0:00:38.8]} 25...
Qxh3 {[%clk 0:00:51.8]} 26. Rd3 {[%clk 0:00:38.3]} 26... Qh4 {[%clk 0:00:43.2]}
27. Rcd1 {[%clk 0:00:36.3]} 27... f5 {[%clk 0:00:41.7]} 28. Kg2 {[%clk
0:00:29.1]} 28... f4 {[%clk 0:00:29.9]} 29. f3 {[%clk 0:00:16.9]} 29... g4
{[%clk 0:00:29.4]} 30. Rh1 {[%clk 0:00:16.3]} 30... gxf3+ {[%clk 0:00:27.8]} 31.
Rxf3 {[%clk 0:00:17.2]} 31... Qg4+ {[%clk 0:00:27]} 32. Kf1 {[%clk 0:00:17.9]}
32... Qxf3+ {[%clk 0:00:26]} 33. Kg1 {[%clk 0:00:18.4]} 33... Rf5 {[%clk
0:00:24.9]} 0-1

[Event "Early-Titled-Tuesday-Blitz-February-13-2024"]
[Site "Chess.com"]
[Date "2024.02.13"]
[Round "1"]
[White "Keeper0416"]
[Black "abeljusto"]
[Result "1-0"]
[WhiteElo "2568"]
[BlackElo "2091"]
[TimeControl "180+1"]
[EndTime "8:07:03 PST"]
[Termination "Keeper0416 won on time"]

1. d4 {[%clk 0:03:00.9]} 1... Nf6 {[%clk 0:02:56.9]} 2. Nf3 {[%clk 0:03:01.8]}
2... e6 {[%clk 0:02:56.8]} 3. c3 {[%clk 0:03:02.7]} 3... d5 {[%clk 0:02:56.7]}
4. Bg5 {[%clk 0:02:28.7]} 4... h6 {[%clk 0:02:55.3]} 5. Bxf6 {[%clk 0:02:27.3]}
5... Qxf6 {[%clk 0:02:56.2]} 6. Nbd2 {[%clk 0:02:27.9]} 6... c5 {[%clk
0:02:54.4]} 7. e4 {[%clk 0:02:26.8]} 7... cxd4 {[%clk 0:02:46.1]} 8. e5 {[%clk
0:02:17.9]} 8... Qd8 {[%clk 0:02:43.1]} 9. cxd4 {[%clk 0:02:10.4]} 9... Bd7
{[%clk 0:02:43]} 10. Bd3 {[%clk 0:02:08]} 10... Be7 {[%clk 0:02:40.8]} 11. O-O
{[%clk 0:02:06.2]} 11... Nc6 {[%clk 0:02:40.5]} 12. a3 {[%clk 0:02:06.3]} 12...
O-O {[%clk 0:02:39.2]} 13. b4 {[%clk 0:02:06.8]} 13... f6 {[%clk 0:02:27.5]} 14.
Nb3 {[%clk 0:01:52.4]} 14... fxe5 {[%clk 0:02:16.3]} 15. dxe5 {[%clk 0:01:52.7]}
15... a6 {[%clk 0:02:00.2]} 16. Rc1 {[%clk 0:01:50.1]} 16... Rxf3 {[%clk
0:01:51.1]} 17. Qxf3 {[%clk 0:01:47.6]} 17... Nxe5 {[%clk 0:01:51.3]} 18. Qg3
{[%clk 0:01:29.8]} 18... Nxd3 {[%clk 0:01:51.1]} 19. Qxd3 {[%clk 0:01:30.7]}
19... Bb5 {[%clk 0:01:50.7]} 20. Qh3 {[%clk 0:01:31.4]} 20... Bxf1 {[%clk
0:01:07.6]} 21. Qxe6+ {[%clk 0:01:31.2]} 21... Kh8 {[%clk 0:01:08.3]} 22. Kxf1
{[%clk 0:01:24.1]} 22... Bf6 {[%clk 0:01:06.8]} 23. g3 {[%clk 0:01:16.8]} 23...
d4 {[%clk 0:01:04.2]} 24. Rd1 {[%clk 0:01:14.9]} 24... Rc8 {[%clk 0:00:42.6]}
25. Nc5 {[%clk 0:01:09.3]} 25... Rc6 {[%clk 0:00:34.1]} 26. Qe4 {[%clk
0:01:01.5]} 26... a5 {[%clk 0:00:17.4]} 27. Nxb7 {[%clk 0:01:00.4]} 27... Qb6
{[%clk 0:00:17.4]} 28. Nxa5 {[%clk 0:01:00.4]} 28... Qb5+ {[%clk 0:00:14.8]} 29.
Qd3 {[%clk 0:00:57.8]} 29... Qxd3+ {[%clk 0:00:13.5]} 30. Rxd3 {[%clk
0:00:58.7]} 30... Rc3 {[%clk 0:00:13.5]} 31. Ke2 {[%clk 0:00:59.1]} 31... Rc2+
{[%clk 0:00:12.7]} 32. Kf3 {[%clk 0:00:59.2]} 32... Ra2 {[%clk 0:00:10.7]} 33.
Nc6 {[%clk 0:00:49.3]} 33... Kg8 {[%clk 0:00:09.4]} 34. b5 {[%clk 0:00:45.4]}
34... Rb2 {[%clk 0:00:08.3]} 35. a4 {[%clk 0:00:44]} 35... Kf7 {[%clk
0:00:07.8]} 36. Nxd4 {[%clk 0:00:43.3]} 36... Rb4 {[%clk 0:00:06.9]} 37. Nc6
{[%clk 0:00:40.6]} 37... Rxa4 {[%clk 0:00:06.2]} 38. b6 {[%clk 0:00:41.2]} 1-0

[Event "Early-Titled-Tuesday-Blitz-February-13-2024"]
[Site "Chess.com"]
[Date "2024.02.13"]
[Round "1"]
[White "Alexchess1984"]
[Black "PushingpawnsNYC"]
[Result "1-0"]
[WhiteElo "2665"]
[BlackElo "2340"]
[TimeControl "180+1"]
[EndTime "8:07:04 PST"]
[Termination "Alexchess1984 won by resignation"]

1. e4 {[%clk 0:03:00.9]} 1... c5 {[%clk 0:02:58.2]} 2. c3 {[%clk 0:02:59.9]}
2... Nf6 {[%clk 0:02:54.3]} 3. e5 {[%clk 0:02:59.8]} 3... Nd5 {[%clk 0:02:53.7]}
4. d4 {[%clk 0:02:59.2]} 4... cxd4 {[%clk 0:02:50.5]} 5. cxd4 {[%clk 0:03:00.1]}
5... e6 {[%clk 0:02:49.5]} 6. Nf3 {[%clk 0:02:59.6]} 6... Nc6 {[%clk 0:02:48.9]}
7. Bd3 {[%clk 0:02:55]} 7... d6 {[%clk 0:02:45.7]} 8. O-O {[%clk 0:02:53]} 8...
Be7 {[%clk 0:02:45.4]} 9. Qe2 {[%clk 0:02:51.1]} 9... O-O {[%clk 0:02:29.1]} 10.
a3 {[%clk 0:02:50]} 10... f5 {[%clk 0:02:10.1]} 11. exf6 {[%clk 0:02:22.8]}
11... Bxf6 {[%clk 0:01:55]} 12. Qe4 {[%clk 0:02:22.2]} 12... g6 {[%clk
0:01:46.4]} 13. Nc3 {[%clk 0:02:22.3]} 13... Nde7 {[%clk 0:01:39.8]} 14. Bg5
{[%clk 0:01:34.6]} 14... d5 {[%clk 0:01:30.4]} 15. Qe3 {[%clk 0:01:32.5]} 15...
Nf5 {[%clk 0:01:23.1]} 16. Bxf5 {[%clk 0:01:31.8]} 16... exf5 {[%clk 0:01:13.6]}
17. Bxf6 {[%clk 0:01:29.7]} 17... Qxf6 {[%clk 0:01:13.1]} 18. Nxd5 {[%clk
0:01:28.6]} 18... Qg7 {[%clk 0:01:04.5]} 19. Nf4 {[%clk 0:01:24]} 19... g5
{[%clk 0:00:57.5]} 20. Nh5 {[%clk 0:01:22.8]} 20... Qg6 {[%clk 0:00:54.5]} 21.
Qxg5 {[%clk 0:01:22]} 21... Qxg5 {[%clk 0:00:51.2]} 22. Nxg5 {[%clk 0:01:21.9]}
22... Nxd4 {[%clk 0:00:51.9]} 23. Rad1 {[%clk 0:01:04]} 23... Nc6 {[%clk
0:00:42.5]} 24. Nf4 {[%clk 0:01:02.1]} 24... b6 {[%clk 0:00:32.1]} 25. Rd2
{[%clk 0:01:00]} 25... Ba6 {[%clk 0:00:31.8]} 26. Rfd1 {[%clk 0:00:56.4]} 26...
Ne5 {[%clk 0:00:25.3]} 27. Rd5 {[%clk 0:00:38.2]} 27... Rfe8 {[%clk 0:00:17.4]}
28. Nh5 {[%clk 0:00:32.6]} 28... Re7 {[%clk 0:00:09.9]} 29. Re1 {[%clk
0:00:29.4]} 29... Rae8 {[%clk 0:00:07.7]} 30. Nf6+ {[%clk 0:00:27.3]} 30... Kg7
{[%clk 0:00:06.2]} 31. Nxe8+ {[%clk 0:00:27.2]} 31... Rxe8 {[%clk 0:00:05.9]}
32. Rdxe5 {[%clk 0:00:27.5]} 32... Rxe5 {[%clk 0:00:04.9]} 33. Rxe5 {[%clk
0:00:26.6]} 33... Kf6 {[%clk 0:00:05.4]} 34. f4 {[%clk 0:00:26.6]} 1-0